fUSD/lending_fUSD_20250325
["ID","MTS","AMOUNT","RATE_DAILY","PERIOD"]
[356642427,1742886642144,-523.42229204,0.00048989,120]
[356642428,1742886642154,-22338.0735661,0.0004899,4]
[356642429,1742886642163,-195.11724,0.0004899,14]
[356642430,1742886642173,-499.499,0.0004899,14]
[356642431,1742886642182,-151.0,0.0004899,14]
[356642432,1742886642191,-499.499,0.0004899,14]
[356642433,1742886642201,-151.0,0.0004899,14]
[356642434,1742886642210,-67014.2206983,0.0004899,4]
[356642435,1742886642220,-151.77,0.0004899,2]
[356642436,1742886642229,-199.03345463,0.00048998,120]
[356642437,1742886642238,-49112.91086728,0.00049,39]
[356642438,1742886642247,-354580.70898432,0.00049,120]
[356642439,1742886642258,-357.38789991,0.00049,120]
[356642444,1742886643167,-7777.99999997,0.00043681,7]
[356642446,1742886643206,-5902.54148303,0.00043681,7]
[356642447,1742886643216,-1284.0,0.00049,7]
[356642448,1742886643225,-103212.53387903,0.00049,120]
[356642449,1742886643236,-13901.78146973,0.00049,120]
[356642450,1742886643247,-619.70755525,0.00049,120]
[356642451,1742886643474,-2794.10004,0.00049,120]
[356642455,1742886646078,-500.0,0.00047,120]
[356642457,1742886646088,-1763.36453968,0.00049,120]
[356642461,1742886646334,-3931.59031877,0.00049,120]
[356642462,1742887096598,-150.0,0.00043,120]
[356642463,1742887107818,-217.81882725,0.00034999,30]
[356642464,1742887109052,-253.59912675,0.00034999,30]
[356642465,1742887112558,-576.79832806,0.00011,2]
[356642466,1742887117331,-161.9231138,0.00043,120]
[356642467,1742887217269,-150.0,0.000121,2]
[356642468,1742887217291,-143.28535622,0.0001331,2]
[356642469,1742887225207,-6.71464378,0.0001331,2]
[356642470,1742887225230,-150.0,0.00018925,2]
[356642471,1742887225253,-13.39189579,0.00026849,2]
[356642472,1742887520228,2895.39244555,9e-05,2]
[356642473,1742887525760,204.60755445,0.000108,2]
[356642474,1742887525790,784.19796849,0.000108,2]
[356642475,1742887536608,1497.95129413,8e-05,2]
[356642476,1742887555151,29292.38430884,6.94e-05,2]
[356642477,1742887562956,1054.64528336,8e-05,2]
[356642478,1742887586224,-21000.0,0.00012,2]
[356642479,1742887678718,1430368.38923782,0.0001,2]
[356642480,1742887685116,981.43422086,9.5e-05,2]
[356642481,1742887705112,376.82820252,7.888e-05,2]
[356642482,1742887710398,5498.05784074,9.828e-05,2]
[356642485,1742887740822,-3249.16987208,0.00012,2]
[356642488,1742887740914,-3249.16987208,0.00012,2]
[356642491,1742887741019,-2108.19114549,0.00012,2]
[356642511,1742887832270,-819.80611266,0.0001188,2]
[356642513,1742887832280,-510.56092479,0.0001188,2]
[356642514,1742887832487,-1056.94262155,0.0001188,2]
[356642515,1742887832497,-150.15347361,0.0001194,2]
[356642516,1742887832506,-88.51624939,0.00012,2]
[356642517,1742887832524,-6940.65118567,0.00012,2]
[356642518,1742887832535,-1077.94,0.00012,2]
[356642519,1742887832546,-865.0,0.00012,2]
[356642545,1742887838172,-606.4717904,0.00012,2]
[356642546,1742887838213,-641.17075531,0.00012,2]
[356642547,1742887838247,-442.20931429,0.00012,2]
[356642548,1742887838260,-4595.3446658,0.00012,2]
[356642549,1742887838277,-1177.89409944,0.00012,2]
[356642550,1742887838394,-2778.04521115,0.00012,2]
[356642551,1742887838425,-341.29755144,0.00012,2]
[356642558,1742887840446,-351.07157279,0.00012,2]
[356642559,1742887840586,-8673.5920313,0.00012,2]
[356642560,1742887840598,-806.91847004,0.00012,2]
[356642561,1742887840609,-524002.96781107,0.00012,2]
[356642562,1742887840660,-2924.05049851,0.00012,2]
[356642563,1742887840715,-317.8416423,0.00012,2]
[356642564,1742887840764,-3340.12225509,0.00012,2]
[356642565,1742887840774,-891.72127326,0.00012,2]
[356642608,1742887843703,-673.82,0.00012,2]
[356642609,1742887843716,-1792.16686633,0.00012,2]
[356642610,1742887843728,-9706.11166097,0.00012,2]
[356642611,1742887843742,-43609.66413308,0.00012,2]
[356642612,1742887843754,-971.4300002,0.00012,2]
[356642613,1742887843765,-2324.27431384,0.00012,2]
[356642614,1742887843777,-2174.13,0.00012,2]
[356642615,1742887843788,-1338.26696788,0.00012,2]
[356642624,1742887846224,-523.789217,0.00012,2]
[356642625,1742887846235,-8684.11977541,0.00012,2]
[356642626,1742887846260,-3307.09,0.00012,2]
[356642627,1742887846386,-1543.49445055,0.00012,2]
[356642628,1742887846415,-527.077714,0.00012,2]
[356642629,1742887846445,-5148.41904232,0.00012,2]
[356642630,1742887846457,-2180.06465565,0.00012,2]
[356642631,1742887846557,-44985.59558026,0.00012,2]
[356642635,1742887862268,-230.53094839,0.00011999,2]
[356642636,1742887893793,-69.46905161,0.00011999,2]
[356642637,1742887893821,-180.53094839,0.00012,2]
[356642638,1742887919381,-243.7446161,0.00012,2]
[356642639,1742887930273,-182.8084621,0.0001193,2]
[356642640,1742887935134,-67.1915379,0.0001193,2]
[356642641,1742887935164,-127.53012724,0.0001199,2]
[356642642,1742887942139,-150.0,0.0001199,2]
[356642643,1742887947874,-41256.19053716,0.0001199,2]
[356642644,1742887947919,-60943.80946284,0.00012,2]
[356642645,1742887951802,-154.0005802,0.00012,2]
[356642646,1742887960042,-162.37649193,0.00012,2]
[356642647,1742887989603,-150.0,0.00011999,2]
[356642648,1742887989632,-42.64826298,0.00012,2]
[356642649,1742887999894,-151.0,0.00012,2]
[356642650,1742888053459,-154.000581,0.0001194,2]
[356642651,1742888053487,-139.28477522,0.00012,2]
[356642652,1742888060402,-150.0,0.00012,2]
[356642653,1742888075453,-151.0,0.00012,2]
[356642654,1742888125917,-5580.0,0.00012,2]
[356642655,1742888127145,-182.808462,0.00012,2]
[356642656,1742888189696,-150.0,0.00011999,2]
[356642657,1742888189724,-32.8084621,0.00012,2]
[356642658,1742888206159,499.99,0.00031618,120]
[356642659,1742888225108,500.0,0.00031618,120]
[356642660,1742888311998,-158.51491,0.0001176,2]
[356642661,1742888322930,-131.53409,0.0001176,2]
[356642662,1742888322958,-18.46591,0.00012,2]
[356642663,1742888328113,-166.66,0.00012,2]
[356642664,1742888332950,-227.14608347,0.00012,2]
[356642665,1742888345383,-383.20611653,0.00012,2]
[356642666,1742888349448,-160.08132431,0.00012,2]
[356642667,1742888351887,-1128.91867569,0.00012,2]
[356642668,1742888895432,-1591.61224191,0.00011939,2]
[356642669,1742888895489,-422.53043915,0.00011939,2]
[356642670,1742888895540,-150.0,0.0001197,2]
[356642671,1742888895593,-787.44140849,0.00012,2]
[356642672,1742888895650,-2951.58408955,0.00012,2]
[356642673,1742888895711,-2951.58408955,0.00012,2]
[356642674,1742888895770,-2951.58408955,0.00012,2]
[356642675,1742888895829,-2951.58408955,0.00012,2]
[356642679,1742889031473,-3479.96276234,0.00012,2]
[356642680,1742889031515,-8597.5755,0.00012,2]
[356642681,1742889031526,-400.41195319,0.00012,2]
[356642682,1742889031575,-752.6631,0.00012,2]
[356642683,1742889031640,-391.2107439,0.00012,2]
[356642684,1742889031651,-2737.33492461,0.00012,2]
[356642685,1742889031662,-1587.35583697,0.00012,2]
[356642686,1742889031687,-3002.58858802,0.00012,2]
[356642687,1742889031699,-1095.15854495,0.00012,2]
[356642688,1742889031731,-96740.56355209,0.00012,2]
[356642706,1742889037493,-581.96065733,0.00012,2]
[356642707,1742889037546,-2545.50539138,0.00012,2]
[356642708,1742889037559,-3967.82184322,0.00012,2]
[356642709,1742889037600,-1328.96696222,0.00012,2]
[356642727,1742889038328,-230.68395514,0.00012,2]
[356642733,1742889039578,-19185.6401518,0.00012,2]
[356642734,1742889039748,-469990.36657463,0.00012,2]
[356642735,1742889039757,-150.0,0.00012417,2]
[356642736,1742889039776,-422.53043915,0.00012833,2]
[356642737,1742889039786,-169.75951688,0.00012933,2]
[356642738,1742889039795,-249.77797023,0.00013033,2]
[356642739,1742889039804,-150.0,0.00013133,2]
[356642740,1742889039814,-150.0,0.000132,2]
[356642741,1742889039823,-212.39137661,0.000155,2]
[356642742,1742889039832,-1591.61224182,0.00015935,2]
[356642743,1742889039842,-212.39137653,0.00016718,2]
[356642744,1742889039851,-249.77797017,0.00016907,2]
[356642745,1742889039861,-185.0,0.00018301,2]
[356642746,1742889039870,-1591.61224182,0.0001993,2]
[356642747,1742889039880,-29379.82252808,0.0002,2]
[356642748,1742889039889,-151.35,0.0002,2]
[356642749,1742889039900,-212.39137653,0.00020536,2]
[356642750,1742889039909,-249.77797017,0.00020781,2]
[356642751,1742889039918,-160.52,0.00021817,2]
[356642752,1742889039927,-8984.38968132,0.00022,5]
[356642753,1742889039937,-200.0,0.00022391,2]
[356642754,1742889039946,-250.0,0.00022597,2]
[356642755,1742889039956,-162.37,0.00022614,2]
[356642756,1742889039965,-1000.0,0.00022731,2]
[356642757,1742889039975,-153.25,0.00023265,2]
[356642758,1742889039985,-250.77,0.00023544,2]
[356642760,1742889039994,-284.88,0.00023696,2]
[356642761,1742889040004,-267.46,0.00023836,2]
[356642762,1742889040013,-1591.61224182,0.00023926,2]
[356642765,1742889040187,-212.39137653,0.00024355,3]
[356642766,1742889040196,-2094.23,0.00024432,2]
[356642767,1742889040206,-249.77797017,0.00024655,2]
[356642768,1742889040215,-182.0453235,0.00024767,2]
[356642769,1742889040224,-411.44891841,0.00024773,2]
[356642770,1742889040234,-160.08132431,0.00024773,2]
[356642771,1742889040243,-552.85685681,0.00024773,2]
[356642772,1742889040252,-160.60846252,0.00024773,2]
[356642773,1742889040262,-151.35,0.0002479,2]
[356642774,1742889040272,-385952.128975,0.000248,2]
[356642775,1742889040282,-745.33,0.00024867,2]
[356642776,1742889040292,-20313.2699461,0.0002487,2]
[356642777,1742889040302,-500.72142482,0.00024873,2]
[356642778,1742889040316,-151.35,0.0002488,2]
[356642779,1742889040326,-121879.619676,0.0002489,2]
[356642780,1742889040335,-39852.9367545,0.000249,2]
[356642781,1742889040345,-418.98,0.0002498,2]
[356642782,1742889040355,-150.99,0.0002498,2]
[356642783,1742889040364,-300.0,0.00025,2]
[356642784,1742889040374,-181.09,0.00025173,2]
[356642785,1742889040388,-651.02,0.00025357,2]
[356642786,1742889040398,-1000.0,0.00025573,2]
[356642787,1742889040408,-23900.0,0.00026348,2]
[356642788,1742889040419,-175.71810421,0.00026849,2]
[356642789,1742889040430,-215.54,0.00026849,2]
[356642790,1742889040439,-745.33,0.00027131,2]
[356642791,1742889040449,-199.66,0.00027397,2]
[356642792,1742889040458,-1591.61224182,0.00027922,2]
[356642793,1742889040468,-212.39137653,0.00028173,5]
[356642794,1742889040478,-1000.0,0.00028414,2]
[356642795,1742889040487,-249.77797017,0.00028529,2]
[356642796,1742889040497,-199.66,0.00028767,2]
[356642797,1742889040506,-745.33,0.00029395,2]
[356642798,1742889040516,-7000.0,0.0003,10]
[356642799,1742889040526,-199.66,0.00030137,2]
[356642800,1742889040536,-58806.14906451,0.000305,7]
[356642801,1742889040545,-1114.54755398,0.00030646,3]
[356642802,1742889040555,-1000.0,0.00031255,2]
[356642803,1742889040565,-199.66,0.00031507,2]
[356642804,1742889040575,-151.0,0.00031618,7]
[356642805,1742889040584,-153.098221,0.00031618,7]
[356642806,1742889040594,-151.35,0.00031636,2]
[356642807,1742889040605,-151.35,0.00031636,2]
[356642808,1742889040614,-151.0,0.00031646,7]
[356642809,1742889040624,-208.686625,0.00031646,7]
[356642810,1742889040634,-195.11724,0.00031646,7]
[356642811,1742889040643,-151.0,0.00031646,7]
[356642812,1742889040653,-151.0,0.00031646,7]
[356642813,1742889040662,-151.0,0.00031646,7]
[356642814,1742889040672,-153.141692,0.00031646,7]
[356642815,1742889040682,-153.04685,0.00031646,7]
[356642816,1742889040691,-176.328759,0.00031646,7]
[356642817,1742889040702,-151.0,0.00031646,7]
[356642818,1742889040712,-253.255986,0.00031646,7]
[356642819,1742889040721,-159.714686,0.00031646,7]
[356642820,1742889040731,-210.763876,0.00031646,7]
[356642821,1742889040741,-266.835488,0.00031646,7]
[356642822,1742889040751,-151.0,0.00031646,7]
[356642823,1742889040760,-151.0,0.00031646,7]
[356642824,1742889040771,-152.760075,0.00031646,7]
[356642825,1742889040781,-156.384332,0.00031646,7]
[356642826,1742889040790,-152.456488,0.00031646,7]
[356642827,1742889040799,-499.499,0.00031646,7]
[356642828,1742889040809,-499.499,0.00031646,7]
[356642829,1742889040818,-499.499,0.00031646,7]
[356642830,1742889040829,-499.499,0.00031646,7]
[356642831,1742889040838,-151.0,0.00031646,7]
[356642832,1742889040848,-151.0,0.00031646,7]
[356642833,1742889040857,-209.221113,0.00031646,7]
[356642834,1742889040867,-155.25263,0.00031646,7]
[356642835,1742889040876,-154.693688,0.00031646,7]
[356642836,1742889040885,-166.291526,0.00031646,7]
[356642837,1742889040895,-152.17036,0.00031646,7]
[356642838,1742889040904,-246.709536,0.00031646,7]
[356642839,1742889040912,-154.963214,0.00031646,7]
[356642840,1742889040922,-221.17855,0.00031646,7]
[356642841,1742889040931,-151.0,0.00031646,7]
[356642842,1742889040940,-165.22821,0.00031646,7]
[356642843,1742889040949,-153.90478,0.00031646,7]
[356642844,1742889040958,-202.87747793,0.00031646,2]
[356642845,1742889040968,-559.99627326,0.00031646,2]
[356642846,1742889040977,-150.0,0.00031646,2]
[356642847,1742889040986,-7731.22061521,0.00031646,2]
[356642848,1742889040995,-603.69321851,0.00031646,2]
[356642849,1742889041005,-622.79017358,0.00031646,2]
[356642850,1742889041014,-213.49747508,0.00031646,2]
[356642851,1742889041024,-163349.24001962,0.00031646,2]
[356642852,1742889041033,-447.58921307,0.00031646,2]
[356642853,1742889041042,-21164.80721277,0.00031646,2]
[356642854,1742889041052,-1061.76462314,0.00031646,2]
[356642855,1742889041064,-2500.0,0.00031646,2]
[356642856,1742889041074,-576.4084341,0.00031646,2]
[356642857,1742889041083,-340.49980441,0.00031646,2]
[356642858,1742889041093,-1100.0,0.00031646,2]
[356642859,1742889041103,-907.73104352,0.00031646,2]
[356642860,1742889041112,-15508.08654041,0.00031646,2]
[356642861,1742889041122,-479.18823681,0.00031646,2]
[356642862,1742889041131,-169.38960779,0.00031646,2]
[356642863,1742889041141,-1578.17347954,0.00031646,2]
[356642864,1742889041150,-55313.48434278,0.00031646,2]
[356642865,1742889041161,-49737.18247777,0.00031646,2]
[356642866,1742889041170,-544.85225433,0.00031646,2]
[356642867,1742889041180,-4982.19220214,0.00031646,2]
[356642868,1742889041189,-3000.0,0.00031646,2]
[356642869,1742889041199,-1006.18786316,0.00031646,2]
[356642870,1742889041209,-362.78824472,0.00031646,2]
[356642871,1742889041219,-2193.34574928,0.00031646,2]
[356642872,1742889041228,-282.13061274,0.00031646,2]
[356642873,1742889041238,-746.09518197,0.00031646,2]
[356642874,1742889041248,-401.41320521,0.00031646,3]
[356642875,1742889041259,-14693.79186686,0.00031646,2]
[356642876,1742889041269,-1826.51376886,0.00031646,2]
[356642877,1742889041279,-1111.41568798,0.00031646,2]
[356642878,1742889041289,-219.07691825,0.00031646,2]
[356642879,1742889041299,-13985.90950505,0.00031646,2]
[356642880,1742889041311,-10138.89726883,0.00031646,2]
[356642881,1742889041321,-8097.7109252,0.00031646,2]
[356642882,1742889041331,-1696.06245084,0.00031646,2]
[356642883,1742889041340,-1422.56037222,0.00031646,2]
[356642884,1742889041350,-5364.91312026,0.00031646,2]
[356642885,1742889041359,-201.58057807,0.00031646,2]
[356642886,1742889041369,-496.40142689,0.00031646,2]
[356642887,1742889041378,-281.03020072,0.00031646,2]
[356642888,1742889041388,-5650.08781498,0.00031646,2]
[356642889,1742889041397,-1007.38615127,0.00031646,2]
[356642890,1742889041407,-747.32726188,0.00031646,2]
[356642891,1742889041417,-1100.15264988,0.00031646,2]
[356642892,1742889041427,-162.91,0.00031646,2]
[356642893,1742889041437,-160.75410908,0.00031646,2]
[356642894,1742889041448,-2160.25862657,0.00031646,2]
[356642895,1742889041459,-150.0,0.00031646,2]
[356642896,1742889041469,-301.80930006,0.00031646,2]
[356642897,1742889041479,-745.33,0.00031659,2]
[356642898,1742889041488,-1591.61224182,0.00031917,2]
[356642899,1742889041498,-212.39137653,0.00031991,6]
[356642900,1742889041508,-249.77797017,0.00032404,2]
[356642901,1742889041518,-189.11,0.00032646,2]
[356642902,1742889041527,-215.54,0.00032646,2]
[356642903,1742889041537,-4624.48314596,0.000328,2]
[356642904,1742889041547,-329.18,0.00032877,2]
[356642905,1742889041557,-199.66,0.00032877,2]
[356642906,1742889041567,-184.27916473,0.00032877,2]
[356642907,1742889041577,-24969.00107257,0.00033,2]
[356642908,1742889041586,-151.0,0.00033,7]
[356642909,1742889041596,-151.0,0.00033,7]
[356642910,1742889041606,-151.142225,0.00033,7]
[356642911,1742889041616,-1161.45759027,0.000335,2]
[356642912,1742889041626,-745.33,0.00033922,2]
[356642913,1742889041635,-1000.0,0.00034097,2]
[356642914,1742889041645,-150.0,0.00034548,10]
[356642915,1742889041654,-3437.83911243,0.000348,2]
[356642916,1742889041664,-1596.36146588,0.00034999,30]
[356642917,1742889041673,-226.18559384,0.00035,2]
[356642918,1742889041683,-267.46,0.00035068,2]
[356642919,1742889041693,-3726.0,0.000353,5]
[356642920,1742889041702,-150.0,0.00035616,2]
[356642921,1742889041711,-212.39137653,0.00035809,7]
[356642922,1742889041721,-1591.61224182,0.00035913,2]
[356642923,1742889041733,-151.0,0.0003592,2]
[356642924,1742889041743,-3941.0,0.0003592,2]
[356642925,1742889041753,-1116.0,0.0003592,2]
[356642926,1742889041763,-640.85817593,0.00036,2]
[356642927,1742889041772,-300.0,0.00036,2]
[356642928,1742889041782,-745.33,0.00036186,2]
[356642929,1742889041791,-249.77797017,0.00036278,2]
[356642930,1742889041800,-290.049,0.0003632,44]
[356642931,1742889041810,-940.0,0.00036393,5]
[356642932,1742889041819,-150.0,0.00036554,2]
[356642933,1742889041829,-150.0,0.00037491,2]
[356642934,1742889041838,-2000.0,0.000378,2]
[356642935,1742889041848,-153.18,0.00037966,2]
[356642936,1742889041858,-150.0,0.00038428,2]
[356642937,1742889041868,-189.11,0.00038443,2]
[356642938,1742889041877,-215.54,0.00038443,2]
[356642939,1742889041887,-745.33,0.0003845,2]
[356642940,1742889041895,-200.0,0.00038803,2]
[356642941,1742889041904,-200.0,0.00038803,2]
[356642942,1742889041913,-200.0,0.00038803,2]
[356642943,1742889041922,-200.0,0.00038803,2]
[356642944,1742889041932,-200.0,0.00038803,2]
[356642945,1742889041941,-200.0,0.00038803,2]
[356642946,1742889041950,-200.0,0.00038803,2]
[356642947,1742889041959,-200.0,0.00038803,2]
[356642948,1742889041968,-200.0,0.00038803,2]
[356642949,1742889041977,-200.0,0.00038803,2]
[356642950,1742889041986,-200.0,0.00038803,2]
[356642951,1742889041995,-200.0,0.00038803,2]
[356642952,1742889042006,-200.0,0.00038803,2]
[356642953,1742889042016,-200.0,0.00038803,2]
[356642954,1742889042025,-200.0,0.00038803,2]
[356642955,1742889042035,-200.0,0.00038803,2]
[356642956,1742889042044,-200.0,0.00038803,2]
[356642957,1742889042054,-200.0,0.00038803,2]
[356642958,1742889042063,-200.0,0.00038803,2]
[356642959,1742889042074,-200.0,0.00038803,2]
[356642960,1742889042083,-200.0,0.00038803,2]
[356642961,1742889042093,-200.0,0.00038803,2]
[356642962,1742889042103,-200.0,0.00038803,2]
[356642963,1742889042112,-200.0,0.00038803,2]
[356642964,1742889042121,-200.0,0.00038803,2]
[356642965,1742889042131,-312.0,0.00038803,2]
[356642966,1742889042140,-494.934,0.0003892,2]
[356642967,1742889042150,-150.0,0.00039366,2]
[356642968,1742889042159,-212.39137653,0.00039627,8]
[356642969,1742889042169,-1591.61224182,0.00039909,15]
[356642970,1742889042179,-16518.93042015,0.0004,2]
[356642971,1742889042188,-7292.42188352,0.0004,4]
[356642972,1742889042198,-370.67112702,0.0004,30]
[356642973,1742889042208,-1382.00641368,0.0004,2]
[356642974,1742889042217,-152.0,0.00040111,3]
[356642976,1742889042226,-249.77797017,0.00040152,15]
[356642978,1742889042235,-150.0,0.00040303,2]
[356642980,1742889042245,-43552.49294674,0.0004048,10]
[356642982,1742889042254,-2000.0,0.000405,2]
[356642984,1742889042263,-745.33,0.00040714,2]
[356642986,1742889042273,-293.28535622,0.00041096,31]
[356642988,1742889042283,-150.0,0.0004124,2]
[356642991,1742889042292,-19401.01763509,0.00042,2]
[356642993,1742889042302,-579.0,0.00042,2]
[356642995,1742889042317,-150.0,0.00042177,2]
[356642997,1742889042327,-152.0,0.00042319,4]
[356642999,1742889042336,-151.35,0.0004239,2]
[356643000,1742889042346,-70662.77651306,0.000424,2]
[356643002,1742889042357,-151.0,0.000424,14]
[356643003,1742889042367,-499.499,0.000424,14]
[356643004,1742889042377,-499.499,0.000424,14]
[356643005,1742889042388,-151.0,0.000424,14]
[356643006,1742889042398,-745.33,0.00042978,2]
[356643007,1742889042407,-188.0768862,0.00043,120]
[356643008,1742889042417,-10000.0,0.00043,120]
[356643009,1742889042426,-154596.32274969,0.00043,30]
[356643010,1742889042435,-299.0,0.00043,14]
[356643011,1742889042445,-155.568347,0.00043,14]
[356643012,1742889042454,-151.0,0.00043,14]
[356643013,1742889042464,-499.499,0.00043,14]
[356643014,1742889042473,-499.499,0.00043,14]
[356643015,1742889042483,-151.0,0.00043,14]
[356643016,1742889042492,-150.0,0.00043115,2]
[356643017,1742889042502,-2000.0,0.000433,2]
[356643018,1742889042511,-212.39137653,0.00043445,9]
[356643019,1742889042521,-5902.54148303,0.00043681,7]
[356643020,1742889042531,-2169.55791762,0.00043681,7]
[356643021,1742889042540,-1394.16399237,0.00043681,7]
[356643022,1742889042550,-2905.57286072,0.00043681,7]
[356643023,1742889042559,-1033.24,0.00043836,31]
[356643024,1742889042569,-1033.24,0.00043836,31]
[356643025,1742889042579,-1033.24,0.00043836,31]
[356643026,1742889042589,-1033.24,0.00043836,31]
[356643027,1742889042599,-1033.24,0.00043836,31]
[356643028,1742889042608,-1033.24,0.00043836,31]
[356643029,1742889042618,-1033.24,0.00043836,31]
[356643030,1742889042628,-1033.24,0.00043836,31]
[356643031,1742889042637,-1033.24,0.00043836,31]
[356643032,1742889042647,-1033.24,0.00043836,31]
[356643033,1742889042656,-1033.24,0.00043836,31]
[356643034,1742889042665,-1033.24,0.00043836,31]
[356643035,1742889042675,-1033.24,0.00043836,31]
[356643036,1742889042685,-1033.24,0.00043836,31]
[356643037,1742889042694,-1033.24,0.00043836,31]
[356643038,1742889042703,-1033.24,0.00043836,31]
[356643039,1742889042713,-1033.24,0.00043836,31]
[356643040,1742889042723,-1033.24,0.00043836,31]
[356643041,1742889042732,-1033.24,0.00043836,31]
[356643042,1742889042742,-1033.24,0.00043836,31]
[356643043,1742889042751,-1033.24,0.00043836,31]
[356643044,1742889042761,-1033.24,0.00043836,31]
[356643045,1742889042770,-1033.24,0.00043836,31]
[356643046,1742889042779,-1033.24,0.00043836,31]
[356643047,1742889042789,-1033.24,0.00043836,31]
[356643048,1742889042799,-1033.24,0.00043836,31]
[356643049,1742889042808,-1033.24,0.00043836,31]
[356643050,1742889042818,-1033.24,0.00043836,31]
[356643051,1742889042828,-1033.24,0.00043836,31]
[356643052,1742889042838,-1033.24,0.00043836,31]
[356643053,1742889042847,-1033.24,0.00043836,31]
[356643054,1742889042857,-1033.24,0.00043836,31]
[356643055,1742889042867,-1033.24,0.00043836,31]
[356643056,1742889042877,-1033.24,0.00043836,31]
[356643057,1742889042888,-1033.24,0.00043836,31]
[356643058,1742889042898,-1033.24,0.00043836,31]
[356643059,1742889042908,-1033.24,0.00043836,31]
[356643060,1742889042917,-1033.24,0.00043836,31]
[356643061,1742889042926,-1033.24,0.00043836,31]
[356643062,1742889042935,-1033.24,0.00043836,31]
[356643063,1742889042945,-1033.24,0.00043836,31]
[356643067,1742889043050,-1033.24,0.00043836,31]
[356643071,1742889043076,-1014.45381818,0.00043836,31]
[356643073,1742889043086,-1014.45381818,0.00043836,31]
[356643075,1742889043095,-1014.45381818,0.00043836,31]
[356643077,1742889043104,-1014.45381818,0.00043836,31]
[356643078,1742889043114,-1014.45381818,0.00043836,31]
[356643079,1742889043123,-1014.45381818,0.00043836,31]
[356643080,1742889043133,-1014.45381818,0.00043836,31]
[356643081,1742889043142,-1014.45381818,0.00043836,31]
[356643082,1742889043152,-1014.45381818,0.00043836,31]
[356643083,1742889043161,-1014.45381818,0.00043836,31]
[356643084,1742889043170,-1014.45381818,0.00043836,31]
[356643085,1742889043179,-1014.45381818,0.00043836,31]
[356643086,1742889043188,-1014.45381818,0.00043836,31]
[356643087,1742889043198,-1014.45381818,0.00043836,31]
[356643088,1742889043207,-1014.45381818,0.00043836,31]
[356643089,1742889043216,-1014.45381818,0.00043836,31]
[356643090,1742889043225,-1014.45381818,0.00043836,31]
[356643091,1742889043234,-1014.45381818,0.00043836,31]
[356643092,1742889043243,-1014.45381818,0.00043836,31]
[356643093,1742889043252,-1014.45381818,0.00043836,31]
[356643094,1742889043262,-1014.45381818,0.00043836,31]
[356643095,1742889043271,-1014.45381818,0.00043836,31]
[356643096,1742889043280,-1014.45381818,0.00043836,31]
[356643097,1742889043289,-1014.45381818,0.00043836,31]
[356643098,1742889043299,-1014.45381818,0.00043836,31]
[356643099,1742889043311,-1014.45381818,0.00043836,31]
[356643100,1742889043321,-1014.45381818,0.00043836,31]
[356643101,1742889043330,-1014.45381818,0.00043836,31]
[356643102,1742889043339,-1014.45381818,0.00043836,31]
[356643103,1742889043348,-987.40171637,0.00043836,31]
[356643104,1742889043358,-987.40171637,0.00043836,31]
[356643105,1742889043367,-987.40171637,0.00043836,31]
[356643106,1742889043376,-987.40171637,0.00043836,31]
[356643107,1742889043385,-987.40171637,0.00043836,31]
[356643108,1742889043395,-987.40171637,0.00043836,31]
[356643109,1742889043404,-987.40171637,0.00043836,31]
[356643110,1742889043413,-987.40171637,0.00043836,31]
[356643111,1742889043423,-987.40171637,0.00043836,31]
[356643112,1742889043432,-987.40171637,0.00043836,31]
[356643113,1742889043441,-987.40171637,0.00043836,31]
[356643114,1742889043450,-987.40171637,0.00043836,31]
[356643115,1742889043460,-987.40171637,0.00043836,31]
[356643116,1742889043469,-987.40171637,0.00043836,31]